bitfinex/quotes_ETHUSD_20241106
["timestamp","ask_amount","ask_price","bid_price","bid_amount"]
[1730860621699,7.00929441,2563.6,2562.5,1.01229391]
[1730860621843,3.90184,2562.9,2562.5,1.01229391]
[1730860622043,7.00929441,2563.1,2562.5,0.23219391]
[1730860622391,3.90228,2562.6,2562.5,0.23219391]
[1730860622573,3.90183,2562.9,2562.5,0.23219391]
[1730860622754,3.90176,2563.0,2562.5,0.23219391]
[1730860622940,3.90144,2563.2,2562.5,0.23219391]
[1730860623563,3.9011,2563.4,2562.5,0.23219391]
[1730860623778,0.0797359,2563.7,2562.7,0.7801]
[1730860624075,0.0797359,2563.7,2562.5,0.23219391]
[1730860624076,0.0797359,2563.7,2563.4,0.01]
[1730860624272,0.005,2565.1,2563.9,3.90019]
[1730860624566,0.005,2565.1,2564.1,3.89998]
[1730860624809,3.89922,2564.7,2564.0,1.171119]
[1730860625009,3.89902,2564.8,2564.0,1.171119]
[1730860625218,7.00929441,2564.5,2563.0,3.7901]
[1730860625509,7.00929441,2564.5,2563.0,0.7801]
[1730860625815,3.90046,2563.8,2563.0,0.7801]
[1730860626027,3.90046,2563.8,2562.6,0.7801]
[1730860626185,3.90119,2563.4,2562.6,0.7801]
[1730860626370,3.90149,2563.2,2562.6,0.7801]
[1730860626709,10.91022441,2563.5,2562.6,0.7801]
[1730860626923,4.66965,2563.9,2562.6,0.7801]
[1730860627208,3.90123,2563.3,2562.7,0.49146039]
[1730860627408,3.90139,2563.2,2562.6,0.7801]
[1730860627579,3.90171,2563.0,2562.5,0.23219391]
[1730860627783,7.00929441,2563.5,2562.5,0.23219391]
[1730860628119,3.90126,2563.3,2562.5,0.23219391]
[1730860628268,3.90107,2563.4,2562.5,0.23219391]
[1730860628612,3.90155,2563.1,2562.5,0.75900934]
[1730860628913,3.90122,2563.3,2562.5,0.23219391]
[1730860629270,3.90154,2563.1,2562.5,0.23219391]
[1730860629697,3.903507,2563.4,2562.6,0.7801]
[1730860629892,3.90153,2563.1,2562.6,0.7801]
[1730860630070,3.90186,2562.9,2562.5,0.23219391]
[1730860630295,3.90199,2562.8,2562.5,0.23219391]
[1730860630612,3.90227,2562.7,2562.5,0.23219391]
[1730860631017,3.90187,2562.9,2562.5,0.23219391]
[1730860631908,3.90198,2562.8,2562.5,0.23219391]
[1730860632085,3.90216,2562.7,2562.5,0.23219391]
[1730860632291,3.90228,2562.6,2562.5,0.23219391]
[1730860633200,4.67158,2562.6,2562.5,0.23219391]
[1730860633513,4.67158,2562.6,2562.5,3.91e-06]
[1730860633716,3.90373,2561.7,2561.4,0.75550689]
[1730860634316,3.9035,2561.8,2561.4,0.75550689]
[1730860634499,3.9035,2561.8,2561.4,1.17349499]
[1730860634702,3.9035,2561.8,2561.4,0.75550689]
[1730860634987,3.90378,2561.7,2561.4,0.75550689]
[1730860635195,3.90369,2561.7,2561.4,0.75550689]
[1730860635506,3.90381,2561.6,2561.5,35.0]
[1730860635706,3.90396,2561.5,2561.4,0.75550689]
[1730860636332,7.694737,2561.5,2561.4,0.75550689]
[1730860636644,0.01,2561.1,2560.4,3.15384197]
[1730860636812,10.91198935,2560.9,2560.4,3.15384197]
[1730860637290,3.90547,2560.6,2559.7,0.7801]
[1730860638007,3.90565,2560.4,2559.7,0.7801]
[1730860638216,7.00711935,2560.9,2559.7,0.7801]
[1730860638414,3.9058,2560.3,2559.7,0.7801]
[1730860638625,3.90575,2560.4,2559.7,0.7801]
[1730860638825,3.9051,2560.8,2560.1,0.07811296]
[1730860639139,3.90474,2561.0,2560.2,0.7801]
[1730860639512,3.90468,2561.1,2560.2,0.7801]
[1730860639718,3.90497,2560.9,2560.2,0.7801]
[1730860640227,3.90507,2560.8,2560.2,0.7801]
[1730860640444,3.90507,2560.8,2560.3,35.0]
[1730860640610,0.7693,2561.2,2560.3,35.0]
[1730860640941,3.90563,2560.4,2560.3,35.0]
[1730860641232,3.90548,2560.6,2560.3,35.0]
[1730860641443,3.90546,2560.6,2560.3,35.0]
[1730860641636,3.90521,2560.7,2560.3,35.0]
[1730860642007,7.00711935,2560.9,2560.3,35.0]
[1730860642170,3.90544,2560.6,2560.3,35.0]
[1730860642568,3.90563,2560.4,2560.3,35.0]
[1730860642720,3.90603,2560.2,2559.7,0.7801]
[1730860643060,7.00711935,2560.9,2559.7,0.7801]
[1730860643061,7.81088,2560.6,2559.7,0.7801]
[1730860643224,3.90566,2560.4,2559.8,35.0]
[1730860643818,3.90498,2560.9,2559.9,3.98451344]
[1730860644016,0.7693,2561.2,2559.9,0.07809898]
[1730860644257,3.90497,2560.9,2559.8,3.90655]
[1730860644561,3.90497,2560.9,2560.4,35.0]
[1730860644562,3.90494,2560.9,2560.4,35.0]
[1730860644877,0.7693,2561.2,2560.5,0.07809976]
[1730860644878,3.90482,2561.0,2560.5,0.07809976]
[1730860645022,3.90482,2561.0,2560.4,35.0]
[1730860645217,7.80969,2561.0,2560.4,35.0]
[1730860645446,4.67375,2561.2,2560.5,0.0780998]
[1730860645648,8.5783,2561.2,2560.4,36.40275706]
[1730860645847,4.67375,2561.2,2560.4,36.40275706]
[1730860646049,10.91130935,2561.4,2560.4,40.30828706]
[1730860646250,3.90419,2561.4,2560.5,0.54675202]
[1730860646418,4.67316,2561.6,2560.5,4.374149]
[1730860646618,4.67316,2561.6,2560.6,0.07808155]
[1730860646619,0.7693,2561.6,2560.6,0.07808155]
[1730860646821,7.00203976,2562.2,2561.2,35.0]
[1730860647223,10.90503976,2562.2,2561.2,35.0]
[1730860647547,3.90318,2562.1,2561.2,35.0]
[1730860647745,10.90503976,2562.2,2561.2,35.0]
[1730860647945,0.7693,2562.7,2561.3,0.07806093]
[1730860647946,11.67346976,2562.7,2561.3,0.07806093]
[1730860648121,3.90139,2563.2,2561.6,4.70807]
[1730860648122,3.90211,2562.8,2561.6,4.70807]
[1730860648327,3.90241,2562.6,2561.7,0.525807]
[1730860648527,3.90241,2562.6,2561.8,35.0]
[1730860648763,7.00203976,2562.7,2561.8,35.0]
[1730860648764,3.90273,2562.4,2561.8,35.0]
[1730860648963,3.90274,2562.3,2561.8,35.0]
[1730860649148,3.90273,2562.4,2561.8,36.09132606]
[1730860649317,7.00203976,2562.7,2561.8,35.0]
[1730860649525,3.90313,2562.1,2561.8,35.0]
[1730860649733,3.90305,2562.1,2561.8,35.0]
[1730860650226,3.90305,2562.1,2561.6,0.8044]
[1730860650227,3.9032,2562.0,2561.6,0.8044]
[1730860650557,3.90368,2561.7,2560.8,0.8044]
[1730860650760,3.90368,2561.7,2560.9,0.470948]
[1730860650962,3.90427,2561.3,2560.9,35.0]
[1730860651170,3.9045,2561.2,2560.1,0.8044]
[1730860651372,3.90414,2561.4,2560.2,4.45497925]
[1730860651551,3.90414,2561.4,2560.3,35.0]
[1730860651752,3.90444,2561.2,2560.3,35.0]
[1730860651928,3.90414,2561.4,2560.3,35.0]
[1730860652132,3.9036,2561.8,2560.5,0.8044]
[1730860652432,3.90321,2562.0,2561.0,3.90461]
[1730860652635,10.90497976,2562.2,2561.1,3.90456]
[1730860652949,3.90307,2562.1,2561.1,38.90456]
[1730860653149,3.90307,2562.1,2561.2,0.47106]
[1730860653359,3.9032,2562.0,2561.2,0.47106]
[1730860653592,3.90376,2561.7,2560.9,0.8044]
[1730860653737,3.90383,2561.6,2561.0,35.0]
[1730860653940,3.90457,2561.1,2561.0,35.0]
[1730860654132,3.90457,2561.1,2560.5,0.8044]
[1730860654637,3.90499,2560.9,2560.5,35.8044]
[1730860654832,3.90533,2560.6,2560.1,0.8044]
[1730860655036,3.9064,2560.0,2559.6,1.5661653]
[1730860655233,3.9067,2559.7,2559.6,0.7617653]
[1730860655440,3.90653,2559.9,2559.6,0.7617653]
[1730860656171,3.9067,2559.7,2559.6,0.7617653]
[1730860656376,3.90716,2559.4,2559.1,0.0677808]
[1730860656536,3.90747,2559.2,2559.1,0.0677808]
[1730860656735,3.90747,2559.2,2559.1,35.0677808]
[1730860657018,7.00203976,2559.7,2559.1,35.0677808]
[1730860657144,3.90747,2559.2,2559.1,0.0677808]
[1730860658689,3.90718,2559.4,2559.1,0.0677808]
[1730860658975,3.90747,2559.2,2559.1,0.0677808]
[1730860660804,3.90692,2559.6,2559.1,0.0677808]
[1730860661004,3.9066,2559.8,2559.1,0.0677808]
[1730860661411,3.90676,2559.7,2559.2,35.0]
[1730860661616,0.7861,2560.0,2559.2,35.0]
[1730860661905,3.90731,2559.3,2559.2,35.0]
[1730860662275,3.9069,2559.6,2559.2,35.0]
[1730860662612,3.90647,2559.9,2559.2,35.0]
[1730860662912,3.90673,2559.7,2559.2,35.0]
[1730860663612,3.90711,2559.5,2559.2,35.0]
[1730860663812,0.7861,2560.0,2559.2,35.0]
[1730860663813,3.90644,2559.9,2559.3,0.07814133]
[1730860664111,3.90644,2559.9,2559.1,0.0677808]
[1730860664112,3.90658,2559.8,2559.1,0.0677808]
[1730860664316,3.90695,2559.6,2559.1,0.0677808]
[1730860664469,0.8213,2559.7,2559.1,0.0677808]
[1730860664665,3.90635,2560.0,2559.1,0.8423808]
[1730860664977,3.90651,2559.9,2559.1,0.8423808]
[1730860665182,3.90658,2559.8,2559.1,0.8423808]
[1730860665611,3.9063,2560.0,2559.2,0.07813294]
[1730860665821,3.9063,2560.0,2559.1,0.8423808]
[1730860665975,0.8213,2560.1,2559.1,0.8423808]
[1730860666175,3.9067,2559.7,2559.1,0.8423808]
[1730860666397,0.8213,2559.7,2559.1,0.0677808]
[1730860666906,3.90686,2559.6,2559.1,0.0677808]
[1730860667214,3.90687,2559.6,2559.1,0.0677808]
[1730860667410,3.90721,2559.4,2559.1,0.0677808]
[1730860667610,3.90687,2559.6,2559.1,0.0677808]
[1730860667815,4.72763,2560.0,2559.2,35.0]
[1730860667981,3.90682,2559.7,2559.2,35.0]
[1730860668318,3.90745,2559.3,2559.1,0.0677808]
[1730860668527,3.90703,2559.5,2559.1,0.0677808]
[1730860668684,3.90703,2559.5,2559.2,35.0]
[1730860669071,3.9067,2559.7,2559.2,35.0]
[1730860669303,7.00203976,2560.1,2559.2,35.0]
[1730860669304,10.90820976,2560.1,2559.3,0.07813991]
[1730860669608,3.90641,2559.9,2559.2,0.7746]
[1730860669912,7.00203976,2560.1,2559.2,0.7746]
[1730860670095,7.00203976,2561.2,2560.4,0.7746]
[1730860670304,3.90437,2561.3,2560.4,0.7746]
[1730860670807,10.90557976,2561.8,2560.6,3.9052]
[1730860671012,3.90409,2561.5,2560.4,4.68017]
[1730860671209,3.90409,2561.5,2560.3,0.01]
[1730860671210,4.7246,2562.0,2560.9,0.7746]
[1730860671414,4.7246,2562.0,2561.0,3.90461]
[1730860671415,3.9033,2562.0,2561.0,3.90461]
[1730860671573,3.90294,2562.2,2561.1,3.90455]
[1730860671909,7.00203976,2562.3,2561.1,3.90455]
[1730860671910,10.90483976,2562.3,2561.2,3.98237585]
[1730860672070,7.00203976,2562.3,2561.3,4.67882]
[1730860672266,1.62086183,2562.5,2561.4,3.90402]
[1730860672511,1.62086183,2562.5,2561.3,0.7746]
[1730860672512,1.62086183,2562.5,2561.5,3.90395]
[1730860672813,1.62086183,2562.5,2561.9,3.90323]
[1730860672975,1.62086183,2562.5,2562.0,3.90319]
[1730860673172,1.62086183,2562.5,2562.1,0.7746]
[1730860673504,1.62086183,2562.5,2562.1,4.68763]
[1730860673708,1.62086183,2562.5,2562.2,0.468763]
[1730860674211,1.62086183,2562.5,2562.4,3.91259]
[1730860674433,1.62086183,2562.5,2562.4,5.23719]
[1730860675074,0.002437,2563.4,2562.9,3.90182]
[1730860675274,0.002437,2563.4,2563.1,0.7746]
[1730860676674,0.002437,2563.4,2563.2,35.0]
[1730860677107,3.903507,2563.4,2563.2,35.0]
[1730860677304,3.90122,2563.3,2562.7,0.7746]
[1730860677514,3.90177,2563.0,2562.7,0.7746]
[1730860677814,0.002437,2563.4,2562.0,35.0]
[1730860677815,3.90122,2563.3,2562.0,35.0]
[1730860677985,0.002437,2563.4,2561.8,4.68808]
[1730860677986,3.90197,2562.9,2561.8,4.68808]
[1730860678183,0.002437,2563.4,2561.8,4.68808]
[1730860678184,3.90122,2563.3,2561.8,0.7746]
[1730860678497,3.90215,2562.7,2561.9,35.0]
[1730860678672,7.00203976,2563.1,2562.0,0.07804793]
[1730860679034,3.90229,2562.6,2561.9,35.0]
[1730860679176,7.00203976,2562.6,2561.8,0.7746]
[1730860679382,3.90224,2562.7,2561.9,0.07804797]
[1730860679576,0.8056,2563.0,2561.9,0.07804797]
[1730860679577,3.90198,2562.8,2561.9,35.0]
[1730860679911,7.00203976,2563.1,2562.0,0.62469053]
[1730860680125,0.002437,2563.4,2562.4,3.90248]
[1730860680289,3.90123,2563.3,2562.2,0.7736]
[1730860680485,0.002437,2563.4,2562.3,35.63802366]
[1730860680808,0.002437,2563.4,2562.4,1.24023553]
[1730860681111,0.002437,2563.4,2562.5,0.07801793]
[1730860681316,0.002437,2563.4,2562.6,0.56]
[1730860681525,0.002437,2563.4,2563.3,4.68482]
[1730860681684,3.9691678,2564.8,2564.1,0.7736]
[1730860681685,0.0702178,2564.8,2564.1,0.7736]
[1730860681882,0.0702178,2564.8,2564.2,0.56]
[1730860682102,0.0702178,2564.8,2564.3,35.0]
[1730860682874,3.8992,2564.7,2564.3,35.0]
[1730860683107,3.9692978,2564.8,2564.3,35.0]
[1730860683315,0.0702178,2564.8,2564.3,35.62284406]
[1730860683701,0.0702178,2564.8,2564.6,0.7736]
[1730860684320,0.0702178,2564.8,2564.3,35.0]
[1730860684589,3.89936,2564.6,2564.1,0.7736]
[1730860684810,3.89936,2564.6,2563.2,3.0]
[1730860684811,3.90027,2564.0,2563.0,0.7736]
[1730860685014,3.89982,2564.3,2563.1,3.90138]
[1730860685212,3.90061,2563.7,2563.0,0.7736]
[1730860685415,3.9004,2563.9,2563.1,0.07800942]
[1730860685619,3.90047,2563.8,2563.0,0.7736]
[1730860685820,3.90047,2563.8,2563.0,35.7736]
[1730860685995,3.90005,2564.1,2563.0,0.7736]
[1730860685996,3.90093,2563.5,2563.0,0.7736]
[1730860686211,3.90122,2563.3,2563.0,0.7736]
[1730860686405,7.81763976,2564.2,2563.0,0.7736]
[1730860686406,3.90072,2563.7,2563.0,0.7736]
[1730860686643,3.90103,2563.5,2563.0,0.7736]
[1730860686799,3.90011,2564.1,2563.0,0.7736]
[1730860686996,3.90072,2563.7,2563.1,0.46853]
[1730860687195,4.71492,2564.6,2563.0,0.7736]
[1730860687196,3.90004,2564.1,2563.2,0.07800919]
[1730860687408,3.90004,2564.1,2563.3,35.0]
[1730860687606,3.89985,2564.2,2563.3,35.0]
[1730860687902,7.79834,2564.7,2563.5,3.90091]
[1730860688101,3.89915,2564.7,2563.8,0.7736]
[1730860688331,3.89926,2564.6,2563.8,0.7736]
[1730860688535,3.89915,2564.7,2563.8,0.7736]
[1730860688741,3.89985,2564.2,2563.8,0.7736]
[1730860689106,0.0662912,2564.5,2563.8,0.7736]
[1730860689334,0.0662912,2564.5,2563.9,35.0]
[1730860690827,0.0662912,2564.5,2563.8,0.7736]
[1730860691035,3.89976,2564.3,2563.8,0.7736]
[1730860691330,0.0662912,2564.5,2563.8,0.7736]
[1730860691331,0.0662912,2564.5,2563.9,35.07798821]
[1730860691517,0.0662912,2564.5,2563.9,38.90019]
[1730860691712,0.0662912,2564.5,2563.9,35.0]
[1730860692100,3.89967,2564.4,2563.5,3.90078]
[1730860692330,0.0662912,2564.5,2563.6,4.67424]
[1730860692642,3.89988,2564.2,2563.7,35.0]
[1730860693043,3.90002,2564.1,2563.7,35.0]
[1730860693229,0.0662912,2564.5,2563.7,35.0]
[1730860693230,3.90028,2564.0,2563.7,35.0]
[1730860693449,3.90046,2563.8,2563.6,0.7736]
[1730860693748,3.90056,2563.8,2563.6,0.7736]
[1730860694050,3.90087,2563.6,2563.2,0.7736]
[1730860694234,3.90061,2563.7,2563.2,0.7736]
[1730860694593,7.00203976,2563.7,2562.8,0.7939]
[1730860694708,3.90182,2562.9,2562.4,35.7939]
[1730860695149,0.0036041,2563.2,2562.4,0.7939]
[1730860695304,0.0036041,2563.2,2561.7,0.7939]
[1730860695507,0.0036041,2563.2,2561.6,1.35850861]
[1730860695508,3.90152,2563.1,2562.0,0.01]
[1730860695709,0.0036041,2563.2,2562.7,0.7939]
[1730860695915,0.0036041,2563.2,2562.8,0.469604]
[1730860696207,0.0036041,2563.2,2563.1,4.70542]
[1730860696641,0.0036041,2563.2,2563.1,5.25542]
[1730860696841,0.0036041,2563.2,2563.1,40.24542]
[1730860697205,0.0036041,2563.2,2563.1,35.7939]
[1730860697454,0.0036041,2563.2,2563.1,40.25542]
[1730860697628,0.0036041,2563.2,2563.1,40.24542]
[1730860697832,0.0036041,2563.2,2563.1,40.25542]
[1730860698035,0.0036041,2563.2,2563.1,36.3439]
[1730860698235,0.0036041,2563.2,2563.1,35.7939]
[1730860699060,0.0036041,2563.2,2562.3,4.49941331]
[1730860699208,3.9049741,2563.2,2562.6,0.7939]
[1730860699409,0.0036041,2563.2,2562.6,0.7939]
[1730860699615,3.90168,2563.0,2562.7,35.0]
[1730860699925,3.9050541,2563.2,2562.7,35.0]
[1730860700125,0.0036041,2563.2,2563.0,0.01]
[1730860700430,0.0036041,2563.2,2563.1,5.30216331]
[1730860700634,0.0036041,2563.2,2563.1,40.71921205]
[1730860700815,0.0036041,2563.2,2563.1,41.19122287]
[1730860701155,7.79986,2564.2,2563.4,0.55]
[1730860701367,3.89986,2564.2,2563.4,0.33905956]
[1730860701530,3.89959,2564.4,2563.5,3.90091]
[1730860701742,3.89972,2564.3,2563.5,3.90091]
[1730860701934,3.89989,2564.2,2563.5,0.55]
[1730860702164,3.89962,2564.4,2563.5,0.55]
[1730860702347,3.89989,2564.2,2563.5,0.55]
[1730860702669,3.89989,2564.2,2563.6,35.0]
[1730860702856,3.89989,2564.2,2563.6,35.52155387]
[1730860703186,7.75593976,2564.7,2563.7,0.34048987]
[1730860703187,3.8993,2564.6,2563.7,0.34048987]
[1730860703359,3.8993,2564.6,2563.8,0.7939]
[1730860703682,3.89954,2564.4,2563.9,0.50349699]
[1730860703896,3.89902,2564.8,2564.0,35.0]
[1730860704187,3.89909,2564.7,2564.0,35.0]
[1730860704485,3.89924,2564.6,2564.0,35.0]
[1730860704697,3.89966,2564.4,2564.0,35.0]
[1730860704988,3.89998,2564.2,2563.8,0.7939]
[1730860705162,3.90042,2563.9,2563.4,0.7939]
[1730860705367,3.89961,2564.4,2563.5,0.07800366]
[1730860705548,3.89907,2564.8,2564.0,3.90014]
[1730860705936,3.89907,2564.8,2563.8,3.90045]
[1730860706071,3.8993,2564.6,2563.9,0.34063715]
[1730860706508,30.0,2565.0,2564.3,3.89958]
[1730860706712,0.7539,2564.9,2564.4,0.73059515]
[1730860706916,3.89904,2564.8,2564.2,0.34039059]
[1730860707211,3.89922,2564.7,2564.2,0.34039059]
[1730860707511,3.89904,2564.8,2564.2,0.34039059]
[1730860707694,3.89931,2564.6,2564.1,35.0]
[1730860707898,3.89968,2564.4,2564.1,35.0]
[1730860708107,3.89969,2564.4,2564.1,35.0]
[1730860708287,3.89971,2564.3,2564.1,35.0]
[1730860708609,3.89966,2564.4,2564.2,0.07798922]
[1730860708813,7.79933,2564.4,2563.6,0.0779877]
[1730860709013,3.89994,2564.2,2563.7,35.0]
[1730860709375,3.89994,2564.2,2563.8,0.34121829]
[1730860709569,3.89994,2564.2,2563.8,0.3414271]
[1730860709815,3.89994,2564.2,2563.1,3.90145]
[1730860709816,0.7941,2564.1,2563.1,0.8047]
[1730860710096,3.90101,2563.5,2563.1,0.8047]
[1730860710280,3.90075,2563.7,2563.1,0.8047]
[1730860710484,3.90101,2563.5,2563.1,0.8047]
[1730860710683,3.90029,2564.0,2563.2,0.07801364]
[1730860710913,3.90048,2563.8,2563.2,0.81999896]
[1730860711099,3.9001,2564.1,2563.1,0.8047]
[1730860711282,3.89972,2564.3,2563.4,3.90104]
[1730860711620,3.9621571,2564.5,2564.3,0.8047]
[1730860711621,0.0626871,2564.5,2564.3,0.8047]
[1730860711819,0.0626871,2564.5,2564.4,0.470444]
[1730860711979,0.0626871,2564.5,2564.3,0.8047]
[1730860712311,3.89964,2564.4,2564.0,0.3415766]
[1730860712514,3.90032,2563.9,2563.6,0.3415766]
[1730860712727,3.90076,2563.6,2563.1,0.8047]
[1730860712872,3.90029,2564.0,2563.2,0.07801211]
[1730860713078,3.90062,2563.7,2563.2,0.8199093]
[1730860713276,3.90015,2564.0,2563.2,0.8199093]
[1730860713498,3.8999,2564.2,2563.2,0.8199093]
[1730860713799,3.90019,2564.0,2563.2,0.34149609]
[1730860714016,3.90047,2563.8,2563.2,0.34149609]
[1730860714212,3.90047,2563.8,2563.2,0.41949835]
[1730860714943,3.90058,2563.8,2563.2,0.07800226]
[1730860715147,3.89978,2564.3,2563.2,0.34149609]
[1730860715148,3.90072,2563.7,2563.2,0.34149609]
[1730860715443,3.90072,2563.7,2563.2,0.41950647]
[1730860715626,3.90072,2563.7,2563.3,0.34149609]
[1730860715800,3.90036,2563.9,2563.4,0.41950647]
[1730860715801,3.90031,2563.9,2563.4,0.41950647]
[1730860716006,3.90031,2563.9,2563.2,0.34149609]
[1730860716201,3.89969,2564.3,2563.3,0.55]
[1730860716403,3.90086,2563.6,2563.3,0.34167074]
[1730860716605,3.90086,2563.6,2563.4,0.34167074]
[1730860716836,7.80173,2563.6,2563.3,0.07801165]
[1730860717004,3.90092,2563.5,2563.1,0.8047]
[1730860717417,3.90086,2563.6,2563.1,1.14637074]
[1730860717654,3.90086,2563.6,2563.2,0.07801214]
[1730860717840,7.80173,2563.6,2563.1,0.8047]
[1730860718023,3.90086,2563.6,2563.1,0.8047]
[1730860718364,3.90004,2564.1,2563.0,0.34167074]
[1730860718365,3.90152,2563.1,2563.0,0.34167074]
[1730860718568,3.90113,2563.4,2562.8,0.34167074]
[1730860719075,3.90137,2563.2,2562.8,0.34167074]
[1730860719219,3.087505,2563.2,2562.8,0.34167074]
[1730860720066,3.087505,2563.2,2562.7,0.8047]
[1730860720360,3.087505,2563.2,2562.6,0.34203398]
[1730860720361,7.80415,2562.8,2562.6,0.34203398]
[1730860720568,3.90213,2562.7,2562.6,0.34203398]
[1730860721278,3.90207,2562.8,2561.9,3.90321]
[1730860721461,3.90229,2562.6,2561.9,3.90321]
[1730860721768,3.90207,2562.8,2562.0,0.390321]
[1730860721954,7.79613976,2563.7,2562.1,0.8047]
[1730860722136,7.80296,2563.2,2562.3,3.90264]
[1730860722339,3.90177,2563.0,2562.1,5.4694053]
[1730860722537,3.90201,2562.8,2562.1,0.8047]
[1730860722740,3.90176,2563.0,2562.2,0.07803742]
[1730860723438,3.90176,2563.0,2562.2,0.33730357]
[1730860723766,3.90199,2562.8,2562.2,0.55]
[1730860723975,3.90214,2562.7,2562.1,0.8047]
[1730860724175,3.90254,2562.5,2562.1,0.1220789]
[1730860724357,7.01203976,2563.2,2561.8,3.9035]
[1730860724358,3.9019,2562.9,2561.8,3.9035]
[1730860724698,7.00203976,2563.7,2561.8,3.9035]
[1730860724699,3.90169,2563.0,2562.3,0.7629]
[1730860724870,3.90163,2563.1,2562.3,0.7629]
[1730860725170,3.90163,2563.1,2562.4,0.07803056]
[1730860725475,0.7854,2563.6,2562.4,0.55241262]
[1730860725632,4.6854,2564.1,2563.2,0.55]
[1730860725990,35.0982554,2565.0,2564.3,0.7629]
[1730860725991,30.7854,2565.0,2564.3,0.7629]
[1730860726144,30.0,2565.0,2564.4,0.55]
[1730860726347,30.0,2565.0,2564.4,5.734685]
[1730860726654,30.0,2565.0,2564.7,0.7629]
[1730860726966,30.0,2565.0,2564.8,0.55]
[1730860727445,30.0,2565.0,2564.7,0.7629]
[1730860727973,33.8987,2565.0,2564.7,0.7629]
[1730860728142,30.0,2565.0,2564.7,0.7629]
[1730860729254,30.0,2565.0,2563.7,6.91049]
[1730860729255,30.0,2565.0,2563.9,3.7629]
[1730860729459,30.7854,2565.0,2563.9,0.7629]
[1730860729657,3.89954,2564.5,2563.9,0.7629]
[1730860730059,0.03765793,2564.4,2563.9,0.7629]
[1730860730391,30.0,2565.0,2564.3,4.66259]
[1730860730686,30.0,2565.0,2564.4,0.466259]
[1730860730854,0.0379259,2564.9,2564.4,0.466259]
[1730860731054,3.9367159,2564.9,2564.4,0.466259]
[1730860731256,0.0379259,2564.9,2564.3,0.7629]
[1730860731455,0.0379259,2564.9,2563.8,0.7629]
[1730860731654,3.89953,2564.5,2563.8,0.7629]
[1730860731840,3.8992,2564.7,2563.8,0.7629]
[1730860732073,3.89939,2564.6,2563.8,5.00448641]
[1730860732244,3.89945,2564.5,2563.8,0.7629]
[1730860732439,0.03762343,2564.6,2563.9,0.466338]
[1730860732680,0.03727415,2564.4,2563.9,0.466338]
[1730860732878,3.93693354,2564.5,2563.9,0.466338]
[1730860733080,0.03756463,2564.3,2563.9,0.466338]
[1730860733288,3.8992,2564.7,2563.9,0.466338]
[1730860733289,0.03757187,2564.4,2563.9,0.466338]
[1730860733445,0.03732387,2564.2,2564.1,4.45]
[1730860733643,0.03714109,2564.3,2564.2,0.55]
[1730860733875,30.0,2565.0,2564.2,4.44984]
[1730860734088,0.03741983,2564.3,2563.8,0.7629]
[1730860734258,3.89948,2564.5,2563.9,0.55]
[1730860734594,3.89921,2564.7,2563.9,1.071347]
[1730860734762,0.03731095,2564.4,2564.1,0.55]
[1730860734962,3.89878,2564.9,2563.9,0.521347]
[1730860735190,0.03729916,2564.3,2563.8,0.7629]
[1730860735485,3.8994,2564.5,2563.8,0.7629]
[1730860735691,0.03706283,2564.2,2563.4,0.7629]
[1730860735884,3.89999,2564.2,2563.4,0.7629]
[1730860736094,3.93953829,2564.1,2563.4,0.7629]
[1730860736254,3.9005,2563.8,2563.4,0.7629]
[1730860736454,3.9005,2563.8,2563.1,1.10428191]
[1730860736455,3.90077,2563.6,2563.1,1.10428191]
[1730860736677,3.90092,2563.5,2563.1,1.26350519]
[1730860736906,3.90119,2563.4,2562.8,0.7617653]
[1730860737202,3.90101,2563.5,2562.8,0.7617653]
[1730860737402,3.90019,2564.0,2563.1,3.9015]
[1730860737572,3.90058,2563.8,2562.9,8.34622753]
[1730860737898,3.90058,2563.8,2562.8,0.7617653]
[1730860738051,0.03966358,2563.7,2562.8,0.7617653]
[1730860738255,3.90015,2564.0,2562.8,0.7617653]
[1730860738452,3.90148,2563.2,2562.8,0.7617653]
[1730860738657,3.90182,2562.9,2562.8,0.7617653]
[1730860738894,3.90182,2562.9,2562.3,0.8174]
[1730860738895,3.90145,2563.2,2562.3,4.72]
[1730860739067,0.8068,2563.6,2562.3,0.8174]
[1730860739068,3.90192,2562.9,2562.3,0.8174]
[1730860739268,0.8068,2563.6,2562.3,0.8174]
[1730860739269,3.90155,2563.1,2562.3,0.8174]
[1730860739471,3.90212,2562.8,2562.3,0.8174]
[1730860739679,3.90239,2562.6,2561.7,0.8174]
[1730860739879,3.90154,2563.1,2561.7,0.8174]
[1730860739880,0.8068,2562.8,2561.7,0.8174]
[1730860740071,3.90281,2562.3,2561.7,0.8174]
[1730860740278,3.90291,2562.2,2561.7,0.8174]
[1730860740458,3.9033,2562.0,2561.7,0.8174]
[1730860740711,0.8068,2562.8,2561.7,0.8174]
[1730860740712,3.90213,2562.7,2561.7,0.8174]
[1730860741010,3.90273,2562.4,2561.7,0.8174]
[1730860741299,3.90291,2562.2,2561.7,0.8174]
[1730860741501,7.80528,2562.4,2561.7,0.8174]
[1730860741670,3.90259,2562.4,2561.7,0.8174]
[1730860741871,3.90234,2562.6,2561.8,0.472117]
[1730860742228,0.8068,2562.8,2562.1,0.55]
[1730860742229,4.70883,2562.8,2562.1,0.55]
[1730860742402,3.90239,2562.6,2561.8,0.472117]
[1730860742579,3.90254,2562.5,2561.9,0.55]
[1730860742974,3.902,2562.8,2562.0,3.98123717]
[1730860743175,3.90178,2563.0,2562.1,4.90615372]
[1730860743519,3.90246,2562.5,2562.1,0.45312372]
[1730860743690,3.90213,2562.7,2562.2,0.0780495]
[1730860744014,3.90185,2562.9,2562.1,0.55]
[1730860744212,3.9019,2562.9,2562.1,0.55]